bitfinex-derivatives/quotes_BTCF0:USTF0_20250313
["timestamp","ask_amount","ask_price","bid_price","bid_amount"]
[1741872782450,0.1207757,82813.0,82791.0,0.0604038]
[1741872782652,0.1207757,82813.0,82787.0,0.0001555]
[1741872782853,0.1207932,82801.0,82800.0,2e-08]
[1741872783055,0.1208545,82759.0,82758.0,0.0928]
[1741872783356,0.1208559,82758.0,82757.0,0.35826419]
[1741872783664,0.2142559,82758.0,82757.0,0.35826419]
[1741872784357,0.09355153,82758.0,82757.0,0.47912159]
[1741872784546,0.0934,82758.0,82757.0,0.47912159]
[1741872784942,0.00018121,82766.0,82765.0,0.1208457]
[1741872785153,0.00018121,82766.0,82765.0,0.2136457]
[1741872785553,0.0913,82788.0,82786.0,0.1208136]
[1741872785758,0.0913,82788.0,82765.0,0.1532227]
[1741872785759,0.19636,82805.0,82770.0,0.27222826]
[1741872785952,0.120803,82796.0,82795.0,0.0604]
[1741872786262,0.28766,82805.0,82757.0,0.73826419]
[1741872786263,0.28766,82805.0,82780.0,0.27222826]
[1741872786557,0.28766,82805.0,82798.0,0.0603974]
[1741872786558,0.63948933,82805.0,82798.0,0.0603974]
[1741872786756,0.63948933,82805.0,82804.0,0.1207888]
[1741872786757,0.35182933,82805.0,82804.0,0.1207888]
[1741872787057,0.00068,82845.0,82804.0,0.60664]
[1741872787250,0.1207557,82828.0,82827.0,0.1207535]
[1741872787554,0.00018121,82813.0,82811.0,0.0949]
[1741872787759,0.19656,82835.0,82801.0,0.1207923]
[1741872787760,0.1207926,82802.0,82801.0,0.1207923]
[1741872787951,0.19724,82818.0,82797.0,0.0908]
[1741872788146,0.1208005,82796.0,82795.0,0.01091148]
[1741872788348,0.1208034,82794.0,82793.0,0.00018108]
[1741872788748,0.0905,82795.0,82794.0,0.1208034]
[1741872788949,0.0603897,82811.0,82793.0,0.00018108]
[1741872789153,0.0603944,82804.0,82800.0,0.1207932]
[1741872789454,0.1207917,82802.0,82801.0,0.0908]
[1741872789659,0.1238034,82794.0,82793.0,0.00018108]
[1741872790259,0.0604154,82776.0,82773.0,0.1208282]
[1741872790456,0.0604154,82776.0,82775.0,0.1208311]
[1741872790660,0.1812516,82775.0,82774.0,0.1208297]
[1741872791061,0.120834,82773.0,82772.0,0.2168326]
[1741872791250,0.0961,82777.0,82776.0,0.1208297]
[1741872791560,0.197,82790.0,82784.0,0.1208138]
[1741872791561,0.1208202,82785.0,82784.0,0.1208138]
[1741872791855,0.00018119,82785.0,82783.0,0.1812285]
[1741872792058,0.37523305,82826.0,82810.0,0.1207801]
[1741872792361,0.0603816,82822.0,82810.0,0.1207801]
[1741872792556,0.0961,82825.0,82810.0,0.1207801]
[1741872792757,0.0961,82825.0,82799.0,0.19664]
[1741872793057,0.27222826,82810.0,82760.0,0.27222826]
[1741872793265,0.27222826,82800.0,82752.0,0.19624]
[1741872793554,0.27222826,82790.0,82758.0,0.02013951]
[1741872793763,0.1208516,82761.0,82760.0,0.1812727]
[1741872793951,0.1208545,82759.0,82758.0,0.00013951]
[1741872794348,0.1208545,82759.0,82746.0,0.35826419]
[1741872794349,0.120872,82747.0,82746.0,0.35826419]
[1741872795152,0.1209188,82715.0,82714.0,0.1209136]
[1741872795346,0.00014975,82715.0,82712.0,0.2418431]
[1741872795552,0.060451,82727.0,82716.0,0.1209113]
[1741872795756,0.1813777,82718.0,82717.0,0.1209126]
[1741872796059,0.1813677,82720.0,82719.0,0.12091]
[1741872796260,0.1813677,82720.0,82713.0,0.0936]
[1741872796261,0.0604577,82718.0,82714.0,0.001]
[1741872796460,0.1209188,82715.0,82714.0,0.001]
[1741872796761,0.1209188,82715.0,82714.0,0.1219202]
[1741872796948,0.1209188,82715.0,82714.0,0.001]
[1741872797466,0.1209188,82715.0,82713.0,0.00018132]
[1741872797467,0.1209202,82714.0,82713.0,2e-08]
[1741872797649,1.75132,82715.0,82700.0,0.1]
[1741872797650,0.1209392,82701.0,82700.0,0.1]
[1741872798055,0.0604625,82711.0,82710.0,0.1209217]
[1741872798255,0.0604642,82709.0,82700.0,0.1604701]
[1741872798558,0.1209392,82701.0,82700.0,0.1]
[1741872798753,0.1209392,82701.0,82700.0,0.2209407]
[1741872798957,0.1219392,82701.0,82700.0,0.2209407]
[1741872799154,0.001,82701.0,82700.0,0.2209407]
[1741872799356,0.4194,82714.0,82700.0,0.2209407]
[1741872799557,0.1209365,82703.0,82702.0,0.1814004]
[1741872799761,0.1209287,82711.0,82710.0,0.1209232]
[1741872800054,0.1209392,82702.0,82701.0,0.1209363]
[1741872800249,0.1209392,82701.0,82700.0,0.1]
[1741872801164,0.1209392,82701.0,82700.0,0.0673655]
[1741872801557,0.2160392,82701.0,82700.0,0.0673655]
[1741872801749,0.0614638,82709.0,82700.0,0.0673655]
[1741872801955,0.319935,82705.0,82704.0,0.1209349]
[1741872802155,0.120933,82709.0,82708.0,0.120926]
[1741872802357,0.1814013,82706.0,82705.0,0.1209326]
[1741872802666,0.0938,82708.0,82707.0,0.1209305]
[1741872802853,0.12110452,82713.0,82712.0,0.1209232]
[1741872803158,0.0604643,82709.0,82706.0,0.0977]
[1741872803364,0.0604643,82709.0,82708.0,0.120929]
[1741872803657,0.0604643,82709.0,82700.0,0.0673655]
[1741872803658,0.1209392,82701.0,82700.0,0.0673655]
[1741872803863,0.3220592,82701.0,82700.0,0.0673655]
[1741872804360,0.0938,82708.0,82706.0,0.1209305]
[1741872804664,0.1209339,82707.0,82706.0,0.1209305]
[1741872805068,0.1209392,82701.0,82700.0,0.0673655]
[1741872806766,0.4194,82704.0,82676.0,0.1209758]
[1741872806962,0.1209831,82671.0,82670.0,0.0968]
[1741872807165,0.0604893,82675.0,82650.0,0.20084]
[1741872807460,0.20088,82685.0,82650.0,0.20084]
[1741872807461,0.1209904,82666.0,82665.0,0.24212395]
[1741872807767,0.0604764,82692.0,82682.0,0.1209616]
[1741872807952,0.1209656,82683.0,82682.0,0.1814434]
[1741872808152,0.1209656,82683.0,82682.0,0.0604824]
[1741872808559,0.0955,82689.0,82676.0,0.0604878]
[1741872808867,0.20164,82695.0,82693.0,0.1209466]
[1741872809059,0.120948,82695.0,82694.0,0.0955]
[1741872809261,0.20164,82697.0,82696.0,0.1209466]
[1741872809461,0.20164,82697.0,82694.0,0.0955]
[1741872809657,0.120948,82695.0,82694.0,0.0955]
[1741872809858,0.0926,82696.0,82674.0,0.0942]
[1741872810161,0.0926,82694.0,82693.0,0.1209509]
[1741872810366,0.1814354,82691.0,82690.0,0.1209545]
[1741872810960,0.0926,82694.0,82678.0,0.0604857]
[1741872811162,0.36482826,82690.0,82640.0,0.69162826]
[1741872811481,0.1209904,82666.0,82665.0,0.12114055]
[1741872811767,0.0604908,82672.0,82671.0,0.1209817]
[1741872811963,0.1209904,82666.0,82665.0,0.00014865]
[1741872812360,0.1210022,82658.0,82657.0,0.0947]
[1741872812762,0.1210109,82652.0,82651.0,0.0605058]
[1741872812965,0.097,82664.0,82640.0,0.0947]
[1741872813168,0.097,82664.0,82643.0,0.0605118]
[1741872813470,0.12102,82648.0,82647.0,0.1210146]
[1741872813966,0.0605118,82644.0,82641.0,0.151913]
[1741872814158,0.1210256,82642.0,82641.0,0.0914]
[1741872814356,0.0925,82643.0,82642.0,0.1210256]
[1741872814566,0.20388,82656.0,82654.0,0.1210065]
[1741872814759,0.1210083,82654.0,82653.0,0.121008]
[1741872814959,0.0604901,82673.0,82642.0,0.0982]
[1741872815163,0.0925,82669.0,82663.0,0.1209938]
[1741872815470,0.0925,82669.0,82651.0,0.060506]
[1741872815769,0.12117344,82666.0,82665.0,0.1209919]
[1741872815968,0.1209919,82665.0,82664.0,0.0941]
[1741872816167,0.00018144,82666.0,82665.0,0.1209919]
[1741872816470,0.00018144,82666.0,82665.0,0.3114919]
[1741872817066,0.0604619,82712.0,82687.0,0.1209597]
[1741872817256,0.091,82692.0,82687.0,0.1209597]
[1741872817464,0.0604727,82697.0,82687.0,0.1209597]
[1741872817770,0.1209528,82692.0,82687.0,0.1209597]
[1741872817961,0.091,82692.0,82687.0,0.1209597]
[1741872818167,0.17867305,82693.0,82687.0,0.1209597]
[1741872818558,0.0604778,82690.0,82687.0,0.1209597]
[1741872818763,0.17867305,82693.0,82687.0,0.1209597]
[1741872818764,0.0604764,82693.0,82692.0,0.1209511]
[1741872818982,0.060474,82695.0,82694.0,0.1209495]
[1741872819267,0.00018144,82696.0,82695.0,0.120948]
[1741872819465,0.00018144,82696.0,82690.0,0.0604772]
[1741872819669,0.0604802,82687.0,82679.0,0.00018144]
[1741872819865,0.12097,82680.0,82679.0,0.14115144]
[1741872820061,0.12097,82680.0,82679.0,0.11128144]
[1741872820266,0.005,82695.0,82694.0,0.1209495]
[1741872821271,0.1209495,82694.0,82693.0,0.0939]
[1741872821468,0.1209495,82694.0,82686.0,0.0908]
[1741872821469,0.0965,82694.0,82686.0,0.0908]
[1741872821664,0.005,82695.0,82694.0,0.1209495]
[1741872821865,0.1209583,82688.0,82687.0,0.0939]
[1741872822062,0.12097,82680.0,82679.0,0.00018144]
[1741872822265,0.12397,82680.0,82679.0,4e-08]
[1741872822763,0.28623735,82680.0,82679.0,4e-08]
[1741872822963,0.43466735,82680.0,82624.0,0.2040603]
[1741872823169,0.1815689,82630.0,82629.0,0.1210399]
[1741872823469,0.0605186,82635.0,82634.0,0.1210373]
[1741872823673,0.0605186,82635.0,82630.0,0.0605209]
[1741872823674,0.1210417,82632.0,82631.0,0.1210407]
[1741872823870,0.01114723,82632.0,82614.0,0.20956]
[1741872824070,0.01114723,82631.0,82630.0,0.1210417]
[1741872824566,0.00018144,82640.0,82630.0,0.01]
[1741872824770,0.00018144,82640.0,82639.0,0.12103]
[1741872824975,0.0604952,82666.0,82652.0,0.12101]
[1741872825172,0.3147944,82665.0,82664.0,0.1209934]
[1741872825379,0.005,82680.0,82650.0,0.27222826]
[1741872825671,0.1209808,82674.0,82673.0,0.1209774]
[1741872825871,0.120988,82670.0,82669.0,0.1209831]
[1741872826374,0.23099683,82677.0,82676.0,0.1209758]
[1741872826870,0.23099683,82677.0,82676.0,0.3398758]
[1741872827273,0.00018144,82682.0,82681.0,0.1209685]
[1741872827671,0.005,82677.0,82676.0,0.2193752]
[1741872827978,0.01605045,82677.0,82676.0,0.2193752]
[1741872828673,0.005,82677.0,82676.0,0.2193752]
[1741872829068,0.005,82677.0,82676.0,0.2293752]
[1741872829264,0.005,82677.0,82676.0,0.2193752]
[1741872829666,0.00018144,82682.0,82651.0,0.060506]
[1741872829667,0.0604879,82676.0,82651.0,0.060506]
[1741872829868,0.1209904,82666.0,82648.0,0.060508]
[1741872830072,0.1209904,82666.0,82642.0,0.01103841]
[1741872830073,0.13222915,82666.0,82658.0,0.1210018]
[1741872830268,0.13222915,82666.0,82649.0,0.1839]
[1741872830474,0.1815199,82652.0,82651.0,0.0605061]
[1741872830768,0.01123875,82652.0,82651.0,0.0605061]
[1741872830972,0.13224965,82652.0,82651.0,0.0605061]
[1741872831177,0.19275815,82652.0,82651.0,0.1210124]
[1741872831377,0.1210139,82650.0,82649.0,0.2133142]
[1741872831562,0.1210285,82640.0,82639.0,0.1815411]
[1741872831768,0.1210314,82638.0,82629.0,0.36019548]
[1741872831977,0.01123875,82637.0,82636.0,0.1210344]
[1741872832377,0.1013,82651.0,82636.0,0.06]
[1741872832672,0.0982,82659.0,82658.0,0.1210022]
[1741872832873,0.31351643,82659.0,82658.0,0.1210022]
[1741872833078,0.18011363,82659.0,82658.0,0.1210022]
[1741872833268,0.18011363,82659.0,82658.0,0.1310022]
[1741872833468,0.06114533,82659.0,82658.0,0.2810022]
[1741872833675,0.1993358,82669.0,82665.0,0.0604958]
[1741872833878,0.1993358,82669.0,82668.0,0.1209875]
[1741872834083,0.3203219,82669.0,82666.0,0.1921]
[1741872834282,0.120989,82667.0,82666.0,0.313088]
[1741872834578,0.0983,82668.0,82646.0,0.00886157]
[1741872834775,0.0605082,82650.0,82649.0,0.1210147]
[1741872834972,0.0989,82666.0,82647.0,0.2217183]
[1741872835182,0.0983,82665.0,82664.0,0.1209934]
[1741872835376,0.1993358,82669.0,82668.0,0.1209875]
[1741872835976,0.35683869,82687.0,82686.0,0.1209612]
[1741872836377,0.26232839,82687.0,82686.0,0.2709612]
[1741872836678,0.0989,82706.0,82686.0,0.21]
[1741872836886,0.0604767,82692.0,82686.0,0.06]
[1741872837075,0.48332253,82701.0,82678.0,0.1209712]
[1741872837076,0.1209753,82679.0,82678.0,0.1209712]
[1741872837271,0.0604858,82679.0,82678.0,0.1209712]
[1741872837478,0.003,82687.0,82671.0,0.0997]
[1741872837778,0.003,82687.0,82676.0,0.1209758]
[1741872837779,0.0928,82678.0,82676.0,0.1209758]
[1741872837982,0.1016,82677.0,82676.0,0.1209758]
[1741872838277,0.1209831,82672.0,82671.0,0.1209812]
[1741872838578,0.1918,82684.0,82672.0,0.1209787]
[1741872838781,0.1209831,82671.0,82670.0,0.00018144]
[1741872838977,0.0604906,82673.0,82636.0,0.22312219]
[1741872839278,0.0604894,82674.0,82652.0,0.1210075]
[1741872839279,0.1210134,82653.0,82652.0,0.1210075]
[1741872839685,0.1918,82656.0,82652.0,0.1210075]
[1741872839981,0.005,82672.0,82662.0,0.1209906]
[1741872839982,0.1209975,82663.0,82662.0,0.1209906]
[1741872840181,0.1210139,82650.0,82649.0,0.28490695]
[1741872841084,0.1210139,82650.0,82649.0,0.40592225]
[1741872841285,0.2200139,82650.0,82649.0,0.28490695]
[1741872841492,0.2152131,82651.0,82650.0,0.1210139]
[1741872841685,0.003,82653.0,82652.0,0.1210109]
[1741872842391,0.0942,82661.0,82660.0,0.1209992]
[1741872842582,0.004,82663.0,82661.0,0.1209978]
[1741872842777,0.004,82663.0,82661.0,0.2169978]
[1741872842975,0.0942,82674.0,82673.0,0.1209802]
[1741872843186,0.14371814,82669.0,82668.0,0.1209875]
[1741872843387,0.09368968,82675.0,82668.0,0.23564]
[1741872843686,0.0604818,82685.0,82684.0,0.1209631]
[1741872844078,0.0987,82687.0,82686.0,0.1209612]
[1741872844282,0.1015,82700.0,82699.0,0.1209422]
[1741872844585,0.2002,82700.0,82686.0,0.21548]
[1741872844779,0.2606707,82700.0,82697.0,0.1209451]
[1741872844981,0.3816138,82700.0,82699.0,0.1209422]
[1741872845583,0.2002,82700.0,82699.0,0.1209422]
[1741872845891,0.0987,82700.0,82699.0,0.1209422]
[1741872846184,0.1037,82700.0,82699.0,0.1209422]
[1741872846384,0.1965,82700.0,82673.0,0.00092]
[1741872846681,0.1209685,82681.0,82680.0,0.21634571]
[1741872846993,0.1209685,82681.0,82661.0,0.00088]
[1741872846994,0.1210153,82649.0,82648.0,0.00088]
[1741872847282,0.1210153,82649.0,82630.0,0.27222826]
[1741872847283,0.1210033,82658.0,82657.0,0.1210003]
[1741872847483,0.27222826,82670.0,82639.0,0.0608]
[1741872847679,0.0604953,82666.0,82639.0,0.0608]
[1741872847875,0.2158,82675.0,82640.0,0.27222826]
[1741872848081,0.00018144,82661.0,82660.0,0.1209992]
[1741872848587,0.2764012,82686.0,82683.0,0.1209626]
[1741872848792,1.40616,82694.0,82662.0,0.0604976]
[1741872849090,0.27222826,82690.0,82646.0,0.4194]
[1741872849286,0.060492,82671.0,82638.0,0.53255127]
[1741872849489,0.1209676,82683.0,82682.0,0.1209644]
[1741872849680,0.00018144,82686.0,82671.0,0.0604911]
[1741872849877,0.42157108,82693.0,82670.0,0.27222826]
[1741872850083,0.002,82686.0,82685.0,0.1209626]
[1741872850278,0.42093108,82693.0,82685.0,0.1209626]
[1741872850279,0.00018144,82687.0,82686.0,0.1209612]
[1741872850478,0.4194,82748.0,82686.0,0.70756]
[1741872850779,0.28343598,82749.0,82718.0,0.1209144]
[1741872850780,0.20745192,82719.0,82718.0,0.1209144]
[1741872851490,0.20745192,82719.0,82711.0,0.21624]
[1741872851689,0.20745192,82719.0,82718.0,0.1209144]
[1741872852085,0.32836482,82719.0,82718.0,0.1209144]
[1741872852383,0.20745192,82719.0,82718.0,0.1209144]
[1741872852593,0.00018144,82727.0,82718.0,0.1209144]
[1741872852594,0.00018144,82727.0,82724.0,0.0604523]
[1741872852894,0.0963,82744.0,82741.0,0.0604399]
[1741872853077,0.24853997,82761.0,82736.0,0.0604435]
[1741872853283,0.2062,82760.0,82759.0,0.1208545]
[1741872853583,0.1812935,82756.0,82755.0,0.1208589]
[1741872853778,0.1208563,82758.0,82757.0,0.1208545]
[1741872853982,0.1208563,82758.0,82748.0,0.060435]
[1741872853983,0.1208618,82754.0,82753.0,0.0604309]
[1741872854384,0.0604299,82756.0,82747.0,0.00018133]
[1741872854385,0.1208705,82748.0,82747.0,0.00018133]
[1741872854890,0.0604299,82756.0,82747.0,0.00018133]
[1741872854891,0.24853997,82761.0,82760.0,0.120853]
[1741872855093,0.30896597,82761.0,82758.0,0.0604274]
[1741872855285,0.1002,82760.0,82759.0,0.1208545]
[1741872855481,0.221053,82760.0,82759.0,0.1208545]
[1741872855686,0.24853997,82761.0,82760.0,0.120853]
[1741872855687,0.18334437,82761.0,82760.0,0.120853]
[1741872855887,0.00064,82789.0,82779.0,0.1208253]
[1741872856089,0.1,82800.0,82798.0,0.1207976]
[1741872856293,0.1,82800.0,82799.0,0.1207961]
[1741872856501,0.1208092,82790.0,82789.0,0.21632]
[1741872856699,0.1033,82799.0,82777.0,0.2164]
[1741872856887,0.1033,82789.0,82778.0,0.0604132]
[1741872857192,0.1208137,82788.0,82787.0,0.1208126]
[1741872857395,0.21528593,82794.0,82780.0,0.0001812]
[1741872857690,0.0604056,82789.0,82786.0,0.0604069]
[1741872857995,0.21528593,82794.0,82793.0,0.1208049]
[1741872858291,0.3229289,82816.0,82809.0,0.1207815]
[1741872858495,9e-08,82816.0,82815.0,0.1207728]
[1741872858696,9e-08,82816.0,82815.0,0.3807728]
[1741872859086,0.1207783,82812.0,82810.0,0.1019]
[1741872859284,0.1207774,82813.0,82812.0,0.120777]
[1741872859685,0.1207786,82811.0,82810.0,0.1019]
[1741872859891,9e-08,82816.0,82810.0,0.1019]
[1741872860092,9e-08,82816.0,82812.0,0.1207754]
[1741872860285,9e-08,82816.0,82814.0,0.1207731]
[1741872860499,9e-08,82816.0,82815.0,0.2206728]
[1741872860802,0.1207713,82817.0,82816.0,0.1207713]
[1741872860996,0.120783,82808.0,82807.0,0.0001812]
[1741872861186,0.1008,82816.0,82807.0,0.1400812]
[1741872861391,0.120783,82808.0,82807.0,0.2608656]
[1741872861591,0.120783,82808.0,82807.0,0.1000812]
[1741872861792,0.0603884,82813.0,82807.0,0.1000812]
[1741872861793,0.12078,82811.0,82810.0,0.1207782]
[1741872861998,0.001,82813.0,82812.0,0.1207771]
[1741872862389,0.1207771,82812.0,82811.0,0.1054]
[1741872862590,0.1008,82812.0,82811.0,0.1207786]
[1741872862902,0.001,82813.0,82812.0,0.1207771]
[1741872863100,0.1064,82822.0,82808.0,0.1054]
[1741872863289,0.0603709,82837.0,82823.0,0.1207611]
[1741872863492,0.1064,82836.0,82823.0,0.1207611]
[1741872863694,0.1064,82836.0,82823.0,0.3344611]
[1741872863896,0.1207485,82832.0,82823.0,0.3344611]
[1741872864093,0.1064,82836.0,82823.0,0.3344611]
[1741872864290,0.0603706,82837.0,82823.0,0.3344611]
[1741872864492,0.4194,82880.0,82823.0,0.3344611]
[1741872864493,0.1207487,82832.0,82823.0,0.3344611]
[1741872864795,0.060363,82848.0,82823.0,0.5498611]
[1741872864987,0.2699604,82851.0,82823.0,0.5598611]
[1741872865193,0.1207349,82841.0,82823.0,0.5598611]
[1741872865394,0.0603627,82848.0,82823.0,0.68059977]
[1741872865595,1e-07,82824.0,82823.0,0.83059977]
[1741872865990,1e-07,82824.0,82823.0,0.5598611]
[1741872866697,0.0010001,82824.0,82823.0,0.5598611]
[1741872866896,0.0603616,82849.0,82827.0,0.0603771]
[1741872867098,0.1810914,82849.0,82848.0,0.1207199]
[1741872867402,0.1063,82861.0,82848.0,0.12072]
[1741872867700,0.1063,82861.0,82843.0,0.1043]
[1741872867901,0.1063,82861.0,82840.0,0.27222826]
[1741872868097,0.1063,82861.0,82860.0,0.1207072]
[1741872868500,0.2270057,82861.0,82860.0,0.1207072]
[1741872868700,0.1063,82861.0,82858.0,0.1207072]
[1741872868905,0.1207159,82854.0,82853.0,0.2122]
[1741872869201,0.060355,82858.0,82786.0,0.6040707]
[1741872869202,0.120729,82845.0,82844.0,0.12091069]
[1741872869397,0.120729,82845.0,82844.0,0.00018109]
[1741872870704,0.04288724,82850.0,82844.0,0.12091159]
[1741872870998,0.120729,82845.0,82844.0,0.00018109]
[1741872871199,0.00011744,82869.0,82859.0,0.1207086]
[1741872871511,0.1207203,82851.0,82850.0,0.2414381]
[1741872871889,0.00011744,82869.0,82850.0,0.1207169]
[1741872871890,0.060358,82854.0,82850.0,0.1207169]
[1741872872096,0.00011744,82869.0,82851.0,0.1069]
[1741872872399,0.00011744,82869.0,82844.0,0.00018109]
[1741872872400,0.120729,82845.0,82844.0,0.00018109]
[1741872872790,0.04820043,82851.0,82844.0,0.00018109]
[1741872872991,0.120729,82845.0,82844.0,0.12090969]
[1741872873199,0.120729,82845.0,82844.0,0.00018109]
[1741872873407,0.120729,82845.0,82844.0,0.12091159]
[1741872874494,0.1003,82847.0,82846.0,0.1207276]
[1741872874803,0.1810855,82850.0,82849.0,0.1207232]
[1741872875008,0.1207232,82849.0,82848.0,0.2308232]
[1741872875502,0.120729,82845.0,82844.0,0.00018109]
[1741872875907,0.1207234,82855.0,82854.0,0.0603547]
[1741872876106,0.00011744,82869.0,82868.0,0.1206955]
[1741872876308,0.12081154,82869.0,82866.0,0.0603486]
[1741872876506,0.060354,82861.0,82852.0,0.0603588]
[1741872876704,0.1207188,82852.0,82851.0,0.2308172]
[1741872876906,0.0603546,82859.0,82851.0,0.1101]
[1741872877099,0.1810681,82859.0,82858.0,0.1207101]
[1741872877305,0.1207188,82852.0,82851.0,0.1101]
[1741872877513,0.1207188,82852.0,82851.0,0.2308203]
[1741872877708,0.1207188,82852.0,82851.0,0.1101]
[1741872878113,0.0975,82853.0,82851.0,0.2308203]
[1741872878307,0.0603575,82855.0,82851.0,0.1101]
[1741872878508,0.0603565,82856.0,82840.0,0.21064]
[1741872878708,0.0603565,82856.0,82852.0,0.1207145]
[1741872878915,0.120717,82854.0,82853.0,0.2209174]
[1741872879214,0.0603553,82858.0,82854.0,0.0603575]
[1741872879414,0.1207145,82855.0,82854.0,0.1810704]
[1741872879610,0.1207159,82854.0,82853.0,0.1002]
[1741872879811,0.060352,82863.0,82855.0,0.0603569]
[1741872880013,0.0975,82867.0,82860.0,0.0603529]
[1741872880317,0.1053,82886.0,82861.0,0.1002]
[1741872880508,0.00064,82891.0,82869.0,0.33257466]
[1741872880705,0.1810391,82873.0,82872.0,0.1206855]
[1741872881016,0.0603453,82873.0,82872.0,0.1206855]
[1741872881214,0.20916,82898.0,82865.0,0.1206965]
[1741872881215,0.1810534,82866.0,82865.0,0.1206965]
[1741872881408,0.0603506,82866.0,82865.0,0.1206965]
[1741872881710,0.0603506,82866.0,82863.0,0.1207014]
[1741872881711,0.1207013,82864.0,82863.0,0.0998]
[1741872881911,0.0975,82872.0,82863.0,0.0998]
[1741872882108,0.2086,82896.0,82863.0,0.0998]
[1741872882410,0.2413808,82875.0,82874.0,0.060341]
[1741872882613,0.1206868,82874.0,82873.0,0.0998]
[1741872882809,0.2262868,82874.0,82873.0,0.2204882]
[1741872883009,0.2262868,82874.0,82873.0,0.0998]
[1741872883508,0.0975,82882.0,82878.0,0.0603398]
[1741872883810,0.120678,82880.0,82879.0,0.0998]
[1741872884011,0.120678,82880.0,82879.0,0.2204795]
[1741872884223,0.120678,82880.0,82879.0,0.0998]
[1741872884521,0.0975,82882.0,82865.0,0.00018097]
[1741872884713,0.1810283,82877.0,82876.0,0.0603412]
[1741872885110,0.1091,82881.0,82880.0,0.120678]
[1741872885311,0.6029768,82937.0,82877.0,0.1081]
[1741872885312,0.120681,82878.0,82877.0,0.1081]
[1741872885713,0.1206926,82870.0,82869.0,0.35360705]
[1741872885913,0.1206926,82870.0,82869.0,0.47430115]
[1741872886215,0.1810081,82887.0,82886.0,0.0603314]
[1741872886526,0.1809896,82896.0,82895.0,0.1206533]
[1741872886726,0.1,82900.0,82894.0,0.1081]
[1741872886912,0.1603262,82900.0,82894.0,0.1081]
[1741872887112,0.1206562,82895.0,82894.0,0.2287577]
[1741872887313,0.1206546,82897.0,82894.0,0.2287577]
[1741872887314,0.0603273,82897.0,82896.0,0.1206547]
[1741872887917,0.15,82897.0,82889.0,0.00018097]
[1741872888111,0.1206635,82890.0,82889.0,0.00018097]
[1741872888311,0.12066,82893.0,82892.0,0.1206606]
[1741872888521,0.1603262,82900.0,82899.0,0.1206504]
[1741872888522,0.2809766,82900.0,82899.0,0.1206504]
[1741872888718,0.2206489,82900.0,82899.0,0.1206504]
[1741872889023,0.2206489,82900.0,82897.0,0.1014]
[1741872889024,0.1206518,82898.0,82897.0,0.1014]
[1741872889519,0.1206606,82892.0,82891.0,0.232262]
[1741872889707,0.1206606,82892.0,82891.0,0.1116]
[1741872889912,0.1206606,82892.0,82891.0,0.232262]
[1741872890115,0.2107,82897.0,82895.0,0.1206547]
[1741872890418,0.00072,82916.0,82899.0,0.1206504]
[1741872890622,0.1206447,82903.0,82899.0,0.1206504]
[1741872891124,0.1206391,82907.0,82899.0,0.1206504]
[1741872891308,0.1206407,82906.0,82899.0,0.2387504]
[1741872891514,0.2206489,82900.0,82899.0,0.1181]
[1741872891817,0.1,82900.0,82899.0,0.2387504]
[1741872892308,0.1206475,82902.0,82900.0,0.0603238]
[1741872892510,0.1131,82916.0,82901.0,0.2201]
[1741872892816,0.1206446,82903.0,82902.0,0.0603223]
[1741872893016,0.1809661,82905.0,82902.0,0.4010678]
[1741872893212,0.1206446,82903.0,82902.0,0.2201]
[1741872893520,0.0603199,82907.0,82899.0,0.53561965]
[1741872893521,0.1206489,82900.0,82899.0,0.53561965]
[1741872893715,0.0603237,82902.0,82899.0,0.41496925]
[1741872893915,0.1691201,82906.0,82900.0,0.1149]
[1741872894217,0.0603209,82905.0,82904.0,0.1206431]
[1741872894423,0.060318,82910.0,82900.0,0.0603238]
[1741872894623,0.1809607,82908.0,82907.0,0.2412724]
[1741872894819,0.0603189,82908.0,82901.0,0.1111]
[1741872895115,0.1206489,82900.0,82899.0,0.41496925]
[1741872895714,0.13288007,82900.0,82899.0,0.41496925]
[1741872896020,0.59257942,82900.0,82865.0,0.61543809]
[1741872896219,0.0603259,82898.0,82883.0,0.0603359]
[1741872896423,0.0603259,82898.0,82871.0,0.109]
[1741872896424,0.01223117,82897.0,82887.0,0.0603331]
[1741872896614,0.1206664,82889.0,82888.0,0.2296616]
[1741872896809,0.0603287,82895.0,82894.0,0.1206562]
[1741872897017,0.0603304,82892.0,82888.0,0.0603318]
[1741872897222,0.1809953,82892.0,82891.0,0.120662]
[1741872897524,0.1809994,82891.0,82890.0,0.1206545]
[1741872897820,0.0603323,82891.0,82886.0,0.06051507]
[1741872898024,0.1206679,82887.0,82886.0,0.00018097]
[1741872898225,0.1206679,82887.0,82886.0,0.12085027]
[1741872898922,0.1206675,82892.0,82891.0,0.060329]
[1741872899317,0.1809825,82899.0,82898.0,0.1809698]
[1741872899515,0.19345293,82899.0,82898.0,0.0603238]
[1741872899822,0.1206591,82893.0,82892.0,0.0603291]
[1741872900127,0.009,82906.0,82886.0,0.00018097]
[1741872900319,0.2036,82915.0,82890.0,0.27222826]
[1741872900515,0.1206559,82899.0,82898.0,0.0603256]
[1741872900721,0.00018059,82903.0,82902.0,0.120646]
[1741872901024,0.12082519,82903.0,82898.0,0.0603256]
[1741872901321,0.1206679,82887.0,82886.0,0.00018097]
[1741872901535,0.1206679,82887.0,82874.0,0.0603432]
[1741872901536,0.1207072,82860.0,82841.0,0.1207345]
[1741872901718,0.13317193,82860.0,82859.0,0.26749531]
[1741872901914,0.01246473,82860.0,82859.0,0.26749531]
[1741872902114,0.02011709,82887.0,82859.0,0.26749531]
[1741872902328,0.12068,82881.0,82880.0,0.1206751]
[1741872902523,0.1809953,82891.0,82890.0,0.060331]
[1741872902719,0.1810112,82886.0,82885.0,0.1206677]
[1741872902919,0.1206882,82873.0,82872.0,0.00018097]
[1741872903320,0.0603362,82884.0,82879.0,0.0603377]
[1741872903514,0.20476,82895.0,82872.0,0.00018097]
[1741872903723,0.1206882,82873.0,82872.0,0.00018097]
[1741872903926,0.01256269,82873.0,82830.0,0.28360352]
[1741872904126,0.1207145,82855.0,82854.0,0.1557859]
[1741872904425,0.0603534,82861.0,82858.0,0.0603547]
[1741872904629,0.01108768,82860.0,82858.0,0.1207086]
[1741872904924,0.1207145,82856.0,82855.0,0.1207108]
[1741872905116,0.4194,82871.0,82854.0,0.03507]
[1741872905117,0.00018097,82867.0,82854.0,0.03507]
[1741872905312,0.0603559,82859.0,82856.0,0.1207101]
[1741872905516,0.00018097,82867.0,82854.0,0.03507]
[1741872905725,0.1207145,82855.0,82854.0,0.03507]
[1741872905922,0.1207145,82855.0,82813.0,0.4194]
[1741872905923,0.1207188,82852.0,82839.0,0.48866591]